[Event "Titled Tuesday Blitz August 10 2021"]
[White "Terry, Renato"]
[Black "Timmermans, Mark"]
[WhiteFideId "3803457"]
[BlackFideId "1026399"]
[WhiteElo "2581"]
[BlackElo "2460"]
[Result "1-0"]
[Round "04"]
[TimeControl "180+1"]
[Date "2021.08.10"]
[WhiteClock "0:00:07"]
[BlackClock "0:00:14"]

1. d4 {[%clk 0:02:59]}  Nf6 {[%clk 0:02:45]} 2. Nf3 {[%clk 0:02:59]}  e6 {[%clk 0:02:44]} 3. c4 {[%clk 0:02:59]}  d5 {[%clk 0:02:45]} 4. e3 {[%clk 0:02:59]}  Be7 {[%clk 0:02:44]} 5. b3 {[%clk 0:03:00]}  O-O {[%clk 0:02:44]} 6. Bd3 {[%clk 0:03:00]}  a6 {[%clk 0:02:44]} 7. O-O {[%clk 0:03:01]}  dxc4 {[%clk 0:02:45]} 8. bxc4 {[%clk 0:03:01]}  c5 {[%clk 0:02:45]} 9. Bb2 {[%clk 0:02:59]}  Nc6 {[%clk 0:02:45]} 10. Nc3 {[%clk 0:02:58]}  cxd4 {[%clk 0:02:44]} 11. exd4 {[%clk 0:02:59]}  Rb8 {[%clk 0:02:42]} 12. Qe2 {[%clk 0:02:28]}  b5 {[%clk 0:02:27]} 13. cxb5 {[%clk 0:02:27]}  axb5 {[%clk 0:02:28]} 14. Nxb5 {[%clk 0:02:16]}  Nd5 {[%clk 0:02:26]} 15. Bc4 {[%clk 0:02:04]}  Na5 {[%clk 0:02:23]} 16. a4 {[%clk 0:01:55]}  Ba6 {[%clk 0:02:13]} 17. Ne5 {[%clk 0:01:27]}  Nf4 {[%clk 0:02:01]} 18. Qg4 {[%clk 0:01:19]}  Nxc4 {[%clk 0:01:58]} 19. Nxc4 {[%clk 0:01:18]}  Nd3 {[%clk 0:01:38]} 20. Bc3 {[%clk 0:01:04]}  Bxb5 {[%clk 0:01:20]} 21. axb5 {[%clk 0:01:04]}  Rxb5 {[%clk 0:01:20]} 22. Qg3 {[%clk 0:00:32]}  Nb4 {[%clk 0:01:15]} 23. d5 {[%clk 0:00:32]}  Bf6 {[%clk 0:01:12]} 24. dxe6 {[%clk 0:00:27]}  fxe6 {[%clk 0:00:56]} 25. Rad1 {[%clk 0:00:16]}  Rd5 {[%clk 0:00:45]} 26. Bxf6 {[%clk 0:00:15]}  Qxf6 {[%clk 0:00:43]} 27. Ne3 {[%clk 0:00:14]}  Rg5 {[%clk 0:00:38]} 28. Qd6 {[%clk 0:00:05]}  Nd5 {[%clk 0:00:39]} 29. Nxd5 {[%clk 0:00:05]}  exd5 {[%clk 0:00:39]} 30. Rxd5 {[%clk 0:00:05]}  Qxd6 {[%clk 0:00:33]} 31. Rxd6 {[%clk 0:00:06]}  Ra5 {[%clk 0:00:34]} 32. g3 {[%clk 0:00:06]}  Rf3 {[%clk 0:00:32]} 33. Kg2 {[%clk 0:00:06]}  Raf5 {[%clk 0:00:26]} 34. Rd2 {[%clk 0:00:06]}  h5 {[%clk 0:00:26]} 35. h4 {[%clk 0:00:05]}  Rf7 {[%clk 0:00:25]} 36. Rc1 {[%clk 0:00:05]}  g6 {[%clk 0:00:24]} 37. Rc6 {[%clk 0:00:05]}  Kg7 {[%clk 0:00:24]} 38. Kg1 {[%clk 0:00:06]}  Kh7 {[%clk 0:00:24]} 39. Rb6 {[%clk 0:00:05]}  Kg7 {[%clk 0:00:23]} 40. Rbb2 {[%clk 0:00:06]}  Kh7 {[%clk 0:00:23]} 41. Kg2 {[%clk 0:00:07]}  Kg7 {[%clk 0:00:23]} 42. Re2 {[%clk 0:00:08]}  R3f6 {[%clk 0:00:22]} 43. Re3 {[%clk 0:00:07]}  Rf5 {[%clk 0:00:22]} 44. Rbe2 {[%clk 0:00:08]}  R5f6 {[%clk 0:00:22]} 45. f4 {[%clk 0:00:07]}  Ra6 {[%clk 0:00:22]} 46. Rd3 {[%clk 0:00:06]}  Raf6 {[%clk 0:00:21]} 47. Kf3 {[%clk 0:00:07]}  Rc6 {[%clk 0:00:22]} 48. Re5 {[%clk 0:00:07]}  Rb6 {[%clk 0:00:22]} 49. Rg5 {[%clk 0:00:07]}  Kh7 {[%clk 0:00:21]} 50. Rgd5 {[%clk 0:00:08]}  Rbf6 {[%clk 0:00:20]} 51. Re3 {[%clk 0:00:08]}  Kg7 {[%clk 0:00:21]} 52. Rc3 {[%clk 0:00:08]}  Kh7 {[%clk 0:00:21]} 53. Rcc5 {[%clk 0:00:08]}  Kg7 {[%clk 0:00:21]} 54. Rg5 {[%clk 0:00:08]}  Kh7 {[%clk 0:00:21]} 55. f5 {[%clk 0:00:07]}  Rxf5+ {[%clk 0:00:18]} 56. Rcxf5 {[%clk 0:00:07]}  gxf5 {[%clk 0:00:19]} 57. Rxh5+ {[%clk 0:00:05]}  Kg6 {[%clk 0:00:19]} 58. Rg5+ {[%clk 0:00:05]}  Kh6 {[%clk 0:00:14]} 59. Kf4 {[%clk 0:00:06]}  Ra7 {[%clk 0:00:14]} 60. Rxf5 {[%clk 0:00:06]}  Ra4+ {[%clk 0:00:14]} 61. Kf3 {[%clk 0:00:07]}  Kg6 {[%clk 0:00:14]} 62. Rg5+ {[%clk 0:00:07]}  Kh6 {[%clk 0:00:14]} 63. Rb5 {[%clk 0:00:08]}  Ra3+ {[%clk 0:00:14]} 64. Kg2 {[%clk 0:00:08]}  Rb3 {[%clk 0:00:14]} 65. Rxb3 {[%clk 0:00:07]} 1-0


[Site "https://www.chess.com"]

[Event "Titled Tuesday Blitz August 10 2021"]
[White "Vasquez Schroeder, Rodrigo"]
[Black "Sevian, Samuel"]
[WhiteFideId "3400042"]
[BlackFideId "2040506"]
[WhiteElo "2568"]
[BlackElo "2972"]
[Result "0-1"]
[Round "04"]
[TimeControl "180+1"]
[Date "2021.08.10"]
[WhiteClock "0:01:18"]
[BlackClock "0:02:19"]

1. e4 {[%clk 0:03:00]}  e5 {[%clk 0:02:59]} 2. Nf3 {[%clk 0:02:59]}  Nf6 {[%clk 0:02:59]} 3. d3 {[%clk 0:02:58]}  Nc6 {[%clk 0:02:58]} 4. c3 {[%clk 0:02:56]}  d5 {[%clk 0:02:58]} 5. Nbd2 {[%clk 0:02:55]}  a5 {[%clk 0:02:58]} 6. Be2 {[%clk 0:02:55]}  Bc5 {[%clk 0:02:58]} 7. O-O {[%clk 0:02:56]}  O-O {[%clk 0:02:58]} 8. b3 {[%clk 0:02:56]}  Re8 {[%clk 0:02:59]} 9. a3 {[%clk 0:02:56]}  h6 {[%clk 0:02:58]} 10. Bb2 {[%clk 0:02:56]}  Bd6 {[%clk 0:02:59]} 11. b4 {[%clk 0:02:56]}  Ne7 {[%clk 0:02:59]} 12. Re1 {[%clk 0:02:55]}  Ng6 {[%clk 0:02:59]} 13. Bf1 {[%clk 0:02:56]}  c6 {[%clk 0:03:00]} 14. g3 {[%clk 0:02:54]}  Be6 {[%clk 0:02:58]} 15. Qc2 {[%clk 0:02:53]}  Qd7 {[%clk 0:02:58]} 16. Bg2 {[%clk 0:02:49]}  Bh3 {[%clk 0:02:58]} 17. Bh1 {[%clk 0:02:45]}  Rad8 {[%clk 0:02:55]} 18. Nf1 {[%clk 0:02:30]}  Bc7 {[%clk 0:02:52]} 19. Rad1 {[%clk 0:02:28]}  axb4 {[%clk 0:02:50]} 20. axb4 {[%clk 0:02:27]}  Bb6 {[%clk 0:02:49]} 21. Ne3 {[%clk 0:02:27]}  Bxe3 {[%clk 0:02:45]} 22. fxe3 {[%clk 0:02:25]}  dxe4 {[%clk 0:02:45]} 23. dxe4 {[%clk 0:02:25]}  Qc7 {[%clk 0:02:42]} 24. c4 {[%clk 0:02:23]}  Rxd1 {[%clk 0:02:40]} 25. Rxd1 {[%clk 0:02:14]}  Qb6 {[%clk 0:02:40]} 26. Qb3 {[%clk 0:01:41]}  Nxe4 {[%clk 0:02:39]} 27. Bg2 {[%clk 0:01:31]}  Bxg2 {[%clk 0:02:37]} 28. Kxg2 {[%clk 0:01:32]}  Nc5 {[%clk 0:02:29]} 29. Qa3 {[%clk 0:01:29]}  Na6 {[%clk 0:02:20]} 30. Bc3 {[%clk 0:01:27]}  Qxe3 {[%clk 0:02:19]} 31. b5 {[%clk 0:01:18]}  Qe2+ {[%clk 0:02:19]} 0-1


[Site "https://www.chess.com"]

[Event "Titled Tuesday Blitz August 10 2021"]
[White "Adury, Anant"]
[Black "Nesterov, Arseniy"]
[WhiteFideId "30964687"]
[BlackFideId "24198455"]
[WhiteElo "2326"]
[BlackElo "2477"]
[Result "1-0"]
[Round "05"]
[TimeControl "180+1"]
[Date "2021.08.10"]
[WhiteClock "0:00:45"]
[BlackClock "0:00:03"]

1. e4 {[%clk 0:03:00]}  e5 {[%clk 0:03:00]} 2. Nf3 {[%clk 0:03:00]}  Nc6 {[%clk 0:03:00]} 3. Bb5 {[%clk 0:03:01]}  a6 {[%clk 0:03:00]} 4. Bxc6 {[%clk 0:03:01]}  dxc6 {[%clk 0:03:00]} 5. O-O {[%clk 0:03:02]}  Qf6 {[%clk 0:03:00]} 6. d4 {[%clk 0:02:54]}  exd4 {[%clk 0:03:01]} 7. Bg5 {[%clk 0:02:48]}  Qd6 {[%clk 0:03:01]} 8. Qxd4 {[%clk 0:02:49]}  Bg4 {[%clk 0:02:40]} 9. Be3 {[%clk 0:02:47]}  Bxf3 {[%clk 0:02:38]} 10. gxf3 {[%clk 0:02:47]}  Qxd4 {[%clk 0:02:26]} 11. Bxd4 {[%clk 0:02:48]}  O-O-O {[%clk 0:02:27]} 12. Be3 {[%clk 0:02:47]}  f6 {[%clk 0:02:23]} 13. Nd2 {[%clk 0:02:44]}  Ne7 {[%clk 0:02:17]} 14. Rad1 {[%clk 0:02:43]}  Ng6 {[%clk 0:02:17]} 15. Nc4 {[%clk 0:02:37]}  Be7 {[%clk 0:02:11]} 16. Kg2 {[%clk 0:02:28]}  b6 {[%clk 0:02:00]} 17. f4 {[%clk 0:02:06]}  f5 {[%clk 0:01:48]} 18. e5 {[%clk 0:02:06]}  Rd5 {[%clk 0:01:42]} 19. b3 {[%clk 0:02:02]}  Nf8 {[%clk 0:01:38]} 20. Nb2 {[%clk 0:02:02]}  Ne6 {[%clk 0:01:36]} 21. c4 {[%clk 0:02:02]}  Rdd8 {[%clk 0:01:34]} 22. Kf3 {[%clk 0:02:00]}  g6 {[%clk 0:01:34]} 23. Ke2 {[%clk 0:02:01]}  a5 {[%clk 0:01:33]} 24. Rxd8+ {[%clk 0:02:01]}  Rxd8 {[%clk 0:01:31]} 25. Rd1 {[%clk 0:02:02]}  Re8 {[%clk 0:01:31]} 26. Nd3 {[%clk 0:01:59]}  Kb7 {[%clk 0:01:29]} 27. Kf3 {[%clk 0:01:58]}  a4 {[%clk 0:01:26]} 28. Ra1 {[%clk 0:01:46]}  Rd8 {[%clk 0:01:14]} 29. Ke2 {[%clk 0:01:43]}  Ra8 {[%clk 0:01:10]} 30. b4 {[%clk 0:01:43]}  a3 {[%clk 0:01:09]} 31. Rb1 {[%clk 0:01:43]}  b5 {[%clk 0:01:06]} 32. c5 {[%clk 0:01:43]}  Bf8 {[%clk 0:00:54]} 33. Rb3 {[%clk 0:01:43]}  Bh6 {[%clk 0:00:50]} 34. Rb1 {[%clk 0:01:31]}  Rd8 {[%clk 0:00:44]} 35. Rc1 {[%clk 0:01:29]}  Ra8 {[%clk 0:00:30]} 36. Rb1 {[%clk 0:01:29]}  Kc8 {[%clk 0:00:30]} 37. Rd1 {[%clk 0:01:28]}  Ra7 {[%clk 0:00:28]} 38. Rb1 {[%clk 0:01:25]}  Kd7 {[%clk 0:00:28]} 39. Rd1 {[%clk 0:01:25]}  Ke7 {[%clk 0:00:29]} 40. Rd2 {[%clk 0:01:25]}  Ra8 {[%clk 0:00:29]} 41. Rd1 {[%clk 0:01:25]}  Rd8 {[%clk 0:00:29]} 42. Rd2 {[%clk 0:01:24]}  Ng7 {[%clk 0:00:25]} 43. Nc1 {[%clk 0:01:19]}  Rd5 {[%clk 0:00:20]} 44. Rxd5 {[%clk 0:01:16]}  cxd5 {[%clk 0:00:21]} 45. Nb3 {[%clk 0:01:15]}  Ne6 {[%clk 0:00:21]} 46. Kf3 {[%clk 0:01:14]}  c6 {[%clk 0:00:20]} 47. Nd4 {[%clk 0:01:15]}  Nxd4+ {[%clk 0:00:18]} 48. Bxd4 {[%clk 0:01:15]}  Ke6 {[%clk 0:00:18]} 49. h4 {[%clk 0:01:14]}  Bf8 {[%clk 0:00:17]} 50. Kg3 {[%clk 0:01:14]}  Be7 {[%clk 0:00:17]} 51. Kh3 {[%clk 0:01:14]}  h6 {[%clk 0:00:17]} 52. Kg3 {[%clk 0:01:14]}  Bd8 {[%clk 0:00:16]} 53. Kh3 {[%clk 0:01:12]}  Kf7 {[%clk 0:00:16]} 54. Kg3 {[%clk 0:01:12]}  Be7 {[%clk 0:00:17]} 55. Kh3 {[%clk 0:01:12]}  g5 {[%clk 0:00:17]} 56. hxg5 {[%clk 0:01:11]}  hxg5 {[%clk 0:00:18]} 57. Kg3 {[%clk 0:01:06]}  g4 {[%clk 0:00:18]} 58. f3 {[%clk 0:01:04]}  gxf3 {[%clk 0:00:18]} 59. Kxf3 {[%clk 0:01:05]}  Bh4 {[%clk 0:00:18]} 60. Bf2 {[%clk 0:01:06]}  Be7 {[%clk 0:00:17]} 61. Bd4 {[%clk 0:01:06]}  Kg6 {[%clk 0:00:17]} 62. Kg3 {[%clk 0:01:06]}  Kh5 {[%clk 0:00:17]} 63. Kh3 {[%clk 0:01:05]}  Bh4 {[%clk 0:00:16]} 64. Bc3 {[%clk 0:00:49]}  Bf2 {[%clk 0:00:15]} 65. Kg2 {[%clk 0:00:45]}  Be3 {[%clk 0:00:16]} 66. Kf3 {[%clk 0:00:46]}  Bc1 {[%clk 0:00:16]} 67. Bd4 {[%clk 0:00:41]}  Kg6 {[%clk 0:00:16]} 68. Be3 {[%clk 0:00:37]}  Bb2 {[%clk 0:00:15]} 69. Bd2 {[%clk 0:00:38]}  Kh5 {[%clk 0:00:14]} 70. Kg3 {[%clk 0:00:37]}  Bd4 {[%clk 0:00:14]} 71. Kf3 {[%clk 0:00:37]}  Kg6 {[%clk 0:00:14]} 72. Kg3 {[%clk 0:00:37]}  Bg1 {[%clk 0:00:13]} 73. Kf3 {[%clk 0:00:37]}  Kf7 {[%clk 0:00:13]} 74. Kg2 {[%clk 0:00:36]}  Bd4 {[%clk 0:00:13]} 75. Kf3 {[%clk 0:00:37]}  Ke6 {[%clk 0:00:14]} 76. Ke2 {[%clk 0:00:35]}  Bb2 {[%clk 0:00:14]} 77. Kd3 {[%clk 0:00:35]}  d4 {[%clk 0:00:10]} 78. Be1 {[%clk 0:00:34]}  Kd5 {[%clk 0:00:10]} 79. Bf2 {[%clk 0:00:35]}  Bc3 {[%clk 0:00:10]} 80. Bg1 {[%clk 0:00:30]}  Bxb4 {[%clk 0:00:10]} 81. Bxd4 {[%clk 0:00:30]}  Bxc5 {[%clk 0:00:10]} 82. Bxc5 {[%clk 0:00:31]}  Kxc5 {[%clk 0:00:10]} 83. Kc3 {[%clk 0:00:32]}  Kd5 {[%clk 0:00:06]} 84. Kb3 {[%clk 0:00:33]}  c5 {[%clk 0:00:07]} 85. Kc3 {[%clk 0:00:34]}  b4+ {[%clk 0:00:06]} 86. Kb3 {[%clk 0:00:33]}  Kc6 {[%clk 0:00:07]} 87. Kc4 {[%clk 0:00:32]}  Kb6 {[%clk 0:00:07]} 88. Kb3 {[%clk 0:00:32]}  Kb5 {[%clk 0:00:07]} 89. Kc2 {[%clk 0:00:32]}  c4 {[%clk 0:00:07]} 90. Kb1 {[%clk 0:00:31]}  Kc5 {[%clk 0:00:08]} 91. Kc2 {[%clk 0:00:31]}  Kd5 {[%clk 0:00:08]} 92. Kd2 {[%clk 0:00:31]}  b3 {[%clk 0:00:09]} 93. axb3 {[%clk 0:00:31]}  cxb3 {[%clk 0:00:09]} 94. Kc1 {[%clk 0:00:30]}  Kc5 {[%clk 0:00:09]} 95. Kb1 {[%clk 0:00:30]}  a2+ {[%clk 0:00:09]} 96. Kb2 {[%clk 0:00:30]}  Kd5 {[%clk 0:00:09]} 97. Ka1 {[%clk 0:00:29]}  Kc6 {[%clk 0:00:09]} 98. Kb2 {[%clk 0:00:29]}  Kb6 {[%clk 0:00:09]} 99. Ka1 {[%clk 0:00:30]}  Kc7 {[%clk 0:00:10]} 100. Kb2 {[%clk 0:00:30]}  Kc6 {[%clk 0:00:10]} 101. Ka1 {[%clk 0:00:31]}  Kb5 {[%clk 0:00:05]} 102. Kb2 {[%clk 0:00:32]}  Kc5 {[%clk 0:00:04]} 103. Ka1 {[%clk 0:00:32]}  Kc4 {[%clk 0:00:03]} 104. Kb2 {[%clk 0:00:33]}  Kd5 {[%clk 0:00:01]} 105. Ka1 {[%clk 0:00:32]}  Ke6 {[%clk 0:00:02]} 106. Kb2 {[%clk 0:00:33]}  Ke7 {[%clk 0:00:03]} 107. Ka1 {[%clk 0:00:33]}  Kf7 {[%clk 0:00:03]} 108. Kb2 {[%clk 0:00:34]}  Ke8 {[%clk 0:00:04]} 109. Ka1 {[%clk 0:00:34]}  Kd8 {[%clk 0:00:05]} 110. Kb2 {[%clk 0:00:35]}  Ke7 {[%clk 0:00:05]} 111. Ka1 {[%clk 0:00:36]}  Kd7 {[%clk 0:00:06]} 112. Kb2 {[%clk 0:00:36]}  Kc7 {[%clk 0:00:07]} 113. Ka1 {[%clk 0:00:37]}  Kb7 {[%clk 0:00:08]} 114. Kb2 {[%clk 0:00:38]}  Kc6 {[%clk 0:00:08]} 115. Kxb3 {[%clk 0:00:39]}  Kc7 {[%clk 0:00:09]} 116. Kxa2 {[%clk 0:00:39]}  Kc6 {[%clk 0:00:08]} 117. Kb2 {[%clk 0:00:40]}  Kb6 {[%clk 0:00:08]} 118. Kc2 {[%clk 0:00:41]}  Kc6 {[%clk 0:00:08]} 119. Kd3 {[%clk 0:00:42]}  Kd5 {[%clk 0:00:08]} 120. Ke3 {[%clk 0:00:42]}  Ke6 {[%clk 0:00:08]} 121. Kd4 {[%clk 0:00:43]}  Ke7 {[%clk 0:00:06]} 122. Kc5 {[%clk 0:00:44]}  Ke6 {[%clk 0:00:04]} 123. Kc4 {[%clk 0:00:43]}  Kf7 {[%clk 0:00:02]} 124. Kd5 {[%clk 0:00:44]}  Ke8 {[%clk 0:00:03]} 125. e6 {[%clk 0:00:45]} 1-0


[Site "https://www.chess.com"]

[Event "Titled Tuesday Blitz August 10 2021"]
[White "Demidov, Mikhail"]
[Black "Yakubboev, Nodirbek"]
[WhiteFideId "4197143"]
[BlackFideId "14203987"]
[WhiteElo "2559"]
[BlackElo "2519"]
[Result "1/2-1/2"]
[Round "05"]
[TimeControl "180+1"]
[Date "2021.08.10"]
[WhiteClock "0:00:08"]
[BlackClock "0:00:03"]

1. Nf3 {[%clk 0:03:00]}  Nf6 {[%clk 0:02:46]} 2. g3 {[%clk 0:03:00]}  g6 {[%clk 0:02:41]} 3. b3 {[%clk 0:02:59]}  Bg7 {[%clk 0:02:42]} 4. Bb2 {[%clk 0:03:00]}  O-O {[%clk 0:02:43]} 5. Bg2 {[%clk 0:03:00]}  d6 {[%clk 0:02:43]} 6. d4 {[%clk 0:03:00]}  e5 {[%clk 0:02:40]} 7. dxe5 {[%clk 0:03:01]}  Nfd7 {[%clk 0:02:40]} 8. O-O {[%clk 0:03:01]}  Nc6 {[%clk 0:02:37]} 9. c4 {[%clk 0:03:01]}  dxe5 {[%clk 0:02:37]} 10. Nfd2 {[%clk 0:02:57]}  f5 {[%clk 0:02:36]} 11. Qc1 {[%clk 0:02:35]}  Nd4 {[%clk 0:02:26]} 12. Nc3 {[%clk 0:02:32]}  c6 {[%clk 0:02:18]} 13. e3 {[%clk 0:02:25]}  Ne6 {[%clk 0:02:18]} 14. Qc2 {[%clk 0:02:25]}  Ndc5 {[%clk 0:02:11]} 15. Rad1 {[%clk 0:02:21]}  Qe7 {[%clk 0:01:52]} 16. b4 {[%clk 0:02:18]}  Nd7 {[%clk 0:01:47]} 17. c5 {[%clk 0:02:11]}  e4 {[%clk 0:01:40]} 18. Nc4 {[%clk 0:02:12]}  b6 {[%clk 0:01:30]} 19. cxb6 {[%clk 0:02:05]}  Qxb4 {[%clk 0:01:11]} 20. Nd6 {[%clk 0:01:41]}  Nxb6 {[%clk 0:01:07]} 21. a3 {[%clk 0:01:28]}  Qc5 {[%clk 0:00:54]} 22. Qb3 {[%clk 0:01:28]}  Bd7 {[%clk 0:00:47]} 23. a4 {[%clk 0:01:18]}  Rab8 {[%clk 0:00:43]} 24. Ndxe4 {[%clk 0:01:07]}  fxe4 {[%clk 0:00:42]} 25. Rxd7 {[%clk 0:01:07]}  Nd5 {[%clk 0:00:29]} 26. Rxg7+ {[%clk 0:00:42]}  Nxg7 {[%clk 0:00:26]} 27. Qa2 {[%clk 0:00:38]}  Rxb2 {[%clk 0:00:24]} 28. Qxb2 {[%clk 0:00:38]}  Qxc3 {[%clk 0:00:24]} 29. Qb7 {[%clk 0:00:38]}  Qc4 {[%clk 0:00:16]} 30. Qxa7 {[%clk 0:00:37]}  Nc3 {[%clk 0:00:14]} 31. a5 {[%clk 0:00:36]}  Ne6 {[%clk 0:00:13]} 32. h4 {[%clk 0:00:32]}  Nc5 {[%clk 0:00:12]} 33. Bh3 {[%clk 0:00:25]}  Nd3 {[%clk 0:00:09]} 34. Qe7 {[%clk 0:00:22]}  Qc5 {[%clk 0:00:08]} 35. Qe6+ {[%clk 0:00:17]}  Kg7 {[%clk 0:00:08]} 36. a6 {[%clk 0:00:16]}  Rf7 {[%clk 0:00:08]} 37. Qe8 {[%clk 0:00:12]}  Ne2+ {[%clk 0:00:06]} 38. Kg2 {[%clk 0:00:12]}  Qc2 {[%clk 0:00:05]} 39. Bg4 {[%clk 0:00:09]}  h5 {[%clk 0:00:05]} 40. Bxe2 {[%clk 0:00:09]}  Qxe2 {[%clk 0:00:05]} 41. Qxe4 {[%clk 0:00:09]}  Rxf2+ {[%clk 0:00:05]} 42. Rxf2 {[%clk 0:00:09]}  Qxf2+ {[%clk 0:00:06]} 43. Kh3 {[%clk 0:00:10]}  Qf1+ {[%clk 0:00:05]} 44. Kh2 {[%clk 0:00:10]}  Qe2+ {[%clk 0:00:06]} 45. Kg1 {[%clk 0:00:10]}  Qf2+ {[%clk 0:00:06]} 46. Kh1 {[%clk 0:00:10]}  Qe1+ {[%clk 0:00:06]} 47. Kh2 {[%clk 0:00:11]}  Qd2+ {[%clk 0:00:06]} 48. Kg1 {[%clk 0:00:10]}  Qd1+ {[%clk 0:00:07]} 49. Kg2 {[%clk 0:00:10]}  Qc2+ {[%clk 0:00:07]} 50. Kg1 {[%clk 0:00:10]}  Qb1+ {[%clk 0:00:07]} 51. Kh2 {[%clk 0:00:10]}  Qa2+ {[%clk 0:00:07]} 52. Kg1 {[%clk 0:00:11]}  Qa1+ {[%clk 0:00:07]} 53. Kh2 {[%clk 0:00:10]}  Qb2+ {[%clk 0:00:07]} 54. Kg1 {[%clk 0:00:08]}  Qc1+ {[%clk 0:00:07]} 55. Kg2 {[%clk 0:00:08]}  Qc2+ {[%clk 0:00:06]} 56. Kg1 {[%clk 0:00:08]}  Qf2+ {[%clk 0:00:07]} 57. Kh1 {[%clk 0:00:08]}  Qf1+ {[%clk 0:00:06]} 58. Kh2 {[%clk 0:00:09]}  Qf2+ {[%clk 0:00:03]} 59. Kh1 {[%clk 0:00:08]} 1/2-1/2


[Site "https://www.chess.com"]

[Event "Titled Tuesday Blitz August 10 2021"]
[White "Gusarov, Grigory"]
[Black "Mamedov, Rauf"]
[WhiteFideId "24102172"]
[BlackFideId "13401653"]
[WhiteElo "2247"]
[BlackElo "2657"]
[Result "0-1"]
[Round "05"]
[TimeControl "180+1"]
[Date "2021.08.10"]
[WhiteClock "0:00:27"]
[BlackClock "0:02:06"]

1. e4 {[%clk 0:03:00]}  c5 {[%clk 0:02:59]} 2. Nf3 {[%clk 0:03:01]}  d6 {[%clk 0:02:58]} 3. Bb5+ {[%clk 0:03:01]}  Nc6 {[%clk 0:02:58]} 4. O-O {[%clk 0:03:00]}  Bd7 {[%clk 0:02:58]} 5. Re1 {[%clk 0:03:00]}  Nf6 {[%clk 0:02:56]} 6. Nc3 {[%clk 0:02:57]}  e5 {[%clk 0:02:52]} 7. a3 {[%clk 0:02:55]}  Be7 {[%clk 0:02:50]} 8. d3 {[%clk 0:02:54]}  O-O {[%clk 0:02:50]} 9. Nd5 {[%clk 0:02:53]}  Nxd5 {[%clk 0:02:50]} 10. exd5 {[%clk 0:02:53]}  Nb8 {[%clk 0:02:50]} 11. Bxd7 {[%clk 0:02:52]}  Nxd7 {[%clk 0:02:51]} 12. c4 {[%clk 0:02:52]}  a6 {[%clk 0:02:51]} 13. b4 {[%clk 0:02:50]}  b5 {[%clk 0:02:50]} 14. Nd2 {[%clk 0:02:50]}  f5 {[%clk 0:02:47]} 15. Rb1 {[%clk 0:02:46]}  Rb8 {[%clk 0:02:46]} 16. Qc2 {[%clk 0:02:41]}  Qc7 {[%clk 0:02:42]} 17. cxb5 {[%clk 0:02:37]}  axb5 {[%clk 0:02:41]} 18. bxc5 {[%clk 0:02:36]}  Qxc5 {[%clk 0:02:41]} 19. Qb3 {[%clk 0:02:31]}  Rfc8 {[%clk 0:02:40]} 20. Bb2 {[%clk 0:02:30]}  Qc2 {[%clk 0:02:40]} 21. Qb4 {[%clk 0:01:27]}  Nc5 {[%clk 0:02:37]} 22. Rec1 {[%clk 0:01:11]}  Qxd3 {[%clk 0:02:35]} 23. Nf3 {[%clk 0:01:04]}  Ne4 {[%clk 0:02:33]} 24. Qe1 {[%clk 0:00:57]}  Qxd5 {[%clk 0:02:30]} 25. Rd1 {[%clk 0:00:58]}  Qe6 {[%clk 0:02:30]} 26. Nd2 {[%clk 0:00:58]}  Nc5 {[%clk 0:02:29]} 27. Qe2 {[%clk 0:00:54]}  Na4 {[%clk 0:02:27]} 28. Nf3 {[%clk 0:00:51]}  Qc4 {[%clk 0:02:27]} 29. Qd2 {[%clk 0:00:50]}  h6 {[%clk 0:02:19]} 30. h3 {[%clk 0:00:49]}  Kh7 {[%clk 0:02:18]} 31. Rbc1 {[%clk 0:00:48]}  Qb3 {[%clk 0:02:18]} 32. Rxc8 {[%clk 0:00:47]}  Rxc8 {[%clk 0:02:18]} 33. Rc1 {[%clk 0:00:42]}  Rxc1+ {[%clk 0:02:15]} 34. Qxc1 {[%clk 0:00:43]}  Qxb2 {[%clk 0:02:15]} 35. Qc7 {[%clk 0:00:41]}  Bf6 {[%clk 0:02:13]} 36. Qd7 {[%clk 0:00:41]}  Qb1+ {[%clk 0:02:10]} 37. Kh2 {[%clk 0:00:42]}  Qe4 {[%clk 0:02:09]} 38. Qxd6 {[%clk 0:00:40]}  Qf4+ {[%clk 0:02:09]} 39. Kg1 {[%clk 0:00:39]}  Nc3 {[%clk 0:02:09]} 40. Qc6 {[%clk 0:00:33]}  e4 {[%clk 0:02:06]} 41. Ne1 {[%clk 0:00:28]}  Qc1 {[%clk 0:02:06]} 42. Kf1 {[%clk 0:00:27]}  Qd1 {[%clk 0:02:06]} 0-1


[Site "https://www.chess.com"]